[Event "Titled Tuesday Blitz April 25 Early 2023"]
[White "Galchenko, Matvey"]
[Black "Borgaonkar Akshay"]
[WhiteFideId "24175480"]
[BlackFideId "25639110"]
[WhiteElo "2423"]
[BlackElo "2063"]
[Result "1-0"]
[Round "08"]
[TimeControl "180+2"]
[Date "2023.04.25"]
[WhiteClock "0:00:08"]
[BlackClock "0:00:07"]

1. f4 {[%clk 0:03:00]}  d5 {[%clk 0:02:52]} 2. Nf3 {[%clk 0:03:01]}  c5 {[%clk 0:02:50]} 3. g3 {[%clk 0:03:01]}  Nc6 {[%clk 0:02:50]} 4. Bg2 {[%clk 0:03:02]}  f6 {[%clk 0:02:50]} 5. O-O {[%clk 0:03:03]}  e5 {[%clk 0:02:49]} 6. d3 {[%clk 0:03:04]}  Bd6 {[%clk 0:02:48]} 7. Nc3 {[%clk 0:03:04]}  Nge7 {[%clk 0:02:44]} 8. e4 {[%clk 0:03:04]}  d4 {[%clk 0:02:43]} 9. Ne2 {[%clk 0:02:55]}  Be6 {[%clk 0:02:42]} 10. c3 {[%clk 0:02:44]}  O-O {[%clk 0:02:36]} 11. f5 {[%clk 0:02:36]}  Bf7 {[%clk 0:02:36]} 12. g4 {[%clk 0:02:36]}  c4 {[%clk 0:02:31]} 13. cxd4 {[%clk 0:02:27]}  exd4 {[%clk 0:02:28]} 14. g5 {[%clk 0:01:47]}  cxd3 {[%clk 0:02:27]} 15. Qxd3 {[%clk 0:01:46]}  Ne5 {[%clk 0:02:04]} 16. Nxe5 {[%clk 0:01:34]}  Bxe5 {[%clk 0:02:05]} 17. gxf6 {[%clk 0:01:29]}  gxf6 {[%clk 0:02:02]} 18. Bh6 {[%clk 0:01:29]}  Re8 {[%clk 0:02:00]} 19. Nf4 {[%clk 0:01:26]}  Kh8 {[%clk 0:01:50]} 20. Kh1 {[%clk 0:01:22]}  Rg8 {[%clk 0:01:48]} 21. Qh3 {[%clk 0:01:13]}  Rc8 {[%clk 0:01:44]} 22. Nd3 {[%clk 0:01:10]}  Rc2 {[%clk 0:01:41]} 23. Nxe5 {[%clk 0:01:01]}  fxe5 {[%clk 0:01:39]} 24. Rg1 {[%clk 0:01:00]}  Nc6 {[%clk 0:01:27]} 25. Bf3 {[%clk 0:00:58]}  d3 {[%clk 0:01:20]} 26. Rxg8+ {[%clk 0:00:57]}  Bxg8 {[%clk 0:01:20]} 27. Qg3 {[%clk 0:00:41]}  Qd7 {[%clk 0:00:38]} 28. Rg1 {[%clk 0:00:37]}  Bxa2 {[%clk 0:00:36]} 29. Bg7+ {[%clk 0:00:22]}  Kg8 {[%clk 0:00:36]} 30. Bxe5+ {[%clk 0:00:23]}  Kf8 {[%clk 0:00:35]} 31. Bd6+ {[%clk 0:00:22]}  Ke8 {[%clk 0:00:24]} 32. Bh5+ {[%clk 0:00:20]}  Kd8 {[%clk 0:00:24]} 33. Qg8+ {[%clk 0:00:17]}  Bxg8 {[%clk 0:00:24]} 34. Rxg8+ {[%clk 0:00:18]}  Qe8 {[%clk 0:00:25]} 35. Bxe8 {[%clk 0:00:10]}  Ne7 {[%clk 0:00:25]} 36. Bxe7+ {[%clk 0:00:09]}  Kxe7 {[%clk 0:00:26]} 37. Ba4 {[%clk 0:00:07]}  Rxb2 {[%clk 0:00:18]} 38. Rg7+ {[%clk 0:00:07]}  Kf6 {[%clk 0:00:19]} 39. Rd7 {[%clk 0:00:08]}  d2 {[%clk 0:00:19]} 40. Bd1 {[%clk 0:00:06]}  Ke5 {[%clk 0:00:17]} 41. Kg2 {[%clk 0:00:06]}  a5 {[%clk 0:00:10]} 42. Kf3 {[%clk 0:00:05]}  b5 {[%clk 0:00:09]} 43. Rd5+ {[%clk 0:00:05]}  Kf6 {[%clk 0:00:09]} 44. Kf4 {[%clk 0:00:05]}  a4 {[%clk 0:00:07]} 45. e5+ {[%clk 0:00:06]}  Ke7 {[%clk 0:00:08]} 46. f6+ {[%clk 0:00:06]}  Ke6 {[%clk 0:00:06]} 47. Rd6+ {[%clk 0:00:07]}  Kf7 {[%clk 0:00:07]} 48. Bh5+ {[%clk 0:00:07]}  Kf8 {[%clk 0:00:07]} 49. Rd8# {[%clk 0:00:08]} 1-0


[Site "https://www.chess.com"]

[Event "Titled Tuesday Blitz April 25 Early 2023"]
[White "Kim, Sergey"]
[Black "Kukhmazov, Arsen"]
[WhiteFideId "13700570"]
[BlackFideId "24108260"]
[WhiteElo "2651"]
[BlackElo "2396"]
[Result "1/2-1/2"]
[Round "08"]
[TimeControl "180+2"]
[Date "2023.04.25"]
[WhiteClock "0:00:29"]
[BlackClock "0:00:45"]

1. d4 {[%clk 0:03:00]}  d5 {[%clk 0:02:43]} 2. c4 {[%clk 0:03:00]}  c6 {[%clk 0:02:43]} 3. Nf3 {[%clk 0:03:00]}  Nf6 {[%clk 0:02:43]} 4. Qc2 {[%clk 0:03:00]}  g6 {[%clk 0:02:43]} 5. e3 {[%clk 0:03:00]}  Bg7 {[%clk 0:02:44]} 6. Bd3 {[%clk 0:03:00]}  O-O {[%clk 0:02:44]} 7. O-O {[%clk 0:03:00]}  dxc4 {[%clk 0:02:31]} 8. Bxc4 {[%clk 0:02:57]}  Bf5 {[%clk 0:02:24]} 9. Qe2 {[%clk 0:02:56]}  b5 {[%clk 0:02:19]} 10. Bb3 {[%clk 0:02:55]}  Nbd7 {[%clk 0:02:14]} 11. Rd1 {[%clk 0:02:53]}  Qb6 {[%clk 0:02:12]} 12. Nc3 {[%clk 0:02:52]}  Ne4 {[%clk 0:02:11]} 13. Nh4 {[%clk 0:02:46]}  Nxc3 {[%clk 0:02:07]} 14. bxc3 {[%clk 0:02:46]}  Be4 {[%clk 0:02:08]} 15. Qg4 {[%clk 0:02:36]}  Nf6 {[%clk 0:02:08]} 16. Qe2 {[%clk 0:02:29]}  a5 {[%clk 0:02:05]} 17. Ba3 {[%clk 0:02:14]}  b4 {[%clk 0:02:02]} 18. cxb4 {[%clk 0:02:09]}  axb4 {[%clk 0:02:03]} 19. Bb2 {[%clk 0:02:09]}  c5 {[%clk 0:01:57]} 20. dxc5 {[%clk 0:02:04]}  Qxc5 {[%clk 0:01:58]} 21. Nf3 {[%clk 0:02:03]}  Qh5 {[%clk 0:01:42]} 22. Nd4 {[%clk 0:01:57]}  Qxe2 {[%clk 0:01:36]} 23. Nxe2 {[%clk 0:01:57]}  Rfd8 {[%clk 0:01:29]} 24. Rac1 {[%clk 0:01:48]}  Bd5 {[%clk 0:01:28]} 25. Bxf6 {[%clk 0:01:37]}  Bxb3 {[%clk 0:01:22]} 26. Rxd8+ {[%clk 0:01:36]}  Rxd8 {[%clk 0:01:23]} 27. Bxg7 {[%clk 0:01:35]}  Rd1+ {[%clk 0:01:14]} 28. Rxd1 {[%clk 0:01:31]}  Bxd1 {[%clk 0:01:15]} 29. Bc3 {[%clk 0:01:20]}  Bxe2 {[%clk 0:01:12]} 30. Bxb4 {[%clk 0:01:20]}  e6 {[%clk 0:01:06]} 31. f3 {[%clk 0:01:18]}  f5 {[%clk 0:01:06]} 32. a4 {[%clk 0:01:14]}  Ba6 {[%clk 0:01:07]} 33. Kf2 {[%clk 0:01:14]}  Kf7 {[%clk 0:01:08]} 34. Kg3 {[%clk 0:01:11]}  e5 {[%clk 0:01:07]} 35. f4 {[%clk 0:01:09]}  Ke6 {[%clk 0:00:42]} 36. Bc3 {[%clk 0:01:06]}  exf4+ {[%clk 0:00:40]} 37. Kxf4 {[%clk 0:00:57]}  h6 {[%clk 0:00:40]} 38. h4 {[%clk 0:00:57]}  Bf1 {[%clk 0:00:40]} 39. g3 {[%clk 0:00:55]}  Bc4 {[%clk 0:00:35]} 40. Bg7 {[%clk 0:00:54]}  h5 {[%clk 0:00:35]} 41. Kg5 {[%clk 0:00:53]}  Kf7 {[%clk 0:00:36]} 42. Bd4 {[%clk 0:00:53]}  Bb3 {[%clk 0:00:37]} 43. a5 {[%clk 0:00:53]}  Bc4 {[%clk 0:00:37]} 44. Bc3 {[%clk 0:00:48]}  Ba6 {[%clk 0:00:38]} 45. Kf4 {[%clk 0:00:47]}  Ke6 {[%clk 0:00:38]} 46. e4 {[%clk 0:00:48]}  fxe4 {[%clk 0:00:38]} 47. Kxe4 {[%clk 0:00:48]}  Bf1 {[%clk 0:00:36]} 48. Kd4 {[%clk 0:00:47]}  Kd6 {[%clk 0:00:35]} 49. Bb4+ {[%clk 0:00:45]}  Kc6 {[%clk 0:00:35]} 50. Ke5 {[%clk 0:00:45]}  Kb5 {[%clk 0:00:36]} 51. Bd2 {[%clk 0:00:45]}  Ka6 {[%clk 0:00:31]} 52. Kf6 {[%clk 0:00:44]}  Be2 {[%clk 0:00:32]} 53. Ke5 {[%clk 0:00:40]}  Bg4 {[%clk 0:00:33]} 54. Kf6 {[%clk 0:00:39]}  Kb7 {[%clk 0:00:34]} 55. Kxg6 {[%clk 0:00:38]}  Ka8 {[%clk 0:00:35]} 56. Kf6 {[%clk 0:00:38]}  Kb7 {[%clk 0:00:35]} 57. Ke5 {[%clk 0:00:38]}  Ka8 {[%clk 0:00:36]} 58. Kd6 {[%clk 0:00:38]}  Kb7 {[%clk 0:00:37]} 59. Kc5 {[%clk 0:00:36]}  Ka8 {[%clk 0:00:38]} 60. Kb6 {[%clk 0:00:36]}  Bf3 {[%clk 0:00:39]} 61. a6 {[%clk 0:00:36]}  Bg4 {[%clk 0:00:40]} 62. Bf4 {[%clk 0:00:36]}  Bf3 {[%clk 0:00:41]} 63. a7 {[%clk 0:00:34]}  Bg4 {[%clk 0:00:41]} 64. Be3 {[%clk 0:00:33]}  Bf3 {[%clk 0:00:42]} 65. Kc7 {[%clk 0:00:33]}  Bg4 {[%clk 0:00:43]} 66. Kd6 {[%clk 0:00:32]}  Bf3 {[%clk 0:00:44]} 67. Ke5 {[%clk 0:00:29]}  Bg4 {[%clk 0:00:45]} 1/2-1/2


[Site "https://www.chess.com"]

[Event "Titled Tuesday Blitz April 25 Early 2023"]
[White "Azarov, Sergei"]
[Black "Mamedov, Edgar"]
[WhiteFideId "13501470"]
[BlackFideId "13739980"]
[WhiteElo "2475"]
[BlackElo "2330"]
[Result "1-0"]
[Round "08"]
[TimeControl "180+2"]
[Date "2023.04.25"]
[WhiteClock "0:00:07"]
[BlackClock "0:00:01"]

1. e4 {[%clk 0:02:58]}  c5 {[%clk 0:02:59]} 2. Nf3 {[%clk 0:02:55]}  e6 {[%clk 0:02:59]} 3. d4 {[%clk 0:02:53]}  cxd4 {[%clk 0:03:00]} 4. Nxd4 {[%clk 0:02:53]}  Nf6 {[%clk 0:02:59]} 5. Nc3 {[%clk 0:02:54]}  Nc6 {[%clk 0:03:00]} 6. Nxc6 {[%clk 0:02:52]}  bxc6 {[%clk 0:03:00]} 7. Bd3 {[%clk 0:02:52]}  d5 {[%clk 0:02:59]} 8. O-O {[%clk 0:02:53]}  Be7 {[%clk 0:02:56]} 9. Qe2 {[%clk 0:02:50]}  O-O {[%clk 0:02:53]} 10. b3 {[%clk 0:02:50]}  Nd7 {[%clk 0:02:53]} 11. Bb2 {[%clk 0:02:47]}  Nc5 {[%clk 0:02:53]} 12. Rad1 {[%clk 0:02:42]}  Nxd3 {[%clk 0:02:53]} 13. Qxd3 {[%clk 0:02:27]}  a5 {[%clk 0:02:43]} 14. Qg3 {[%clk 0:02:26]}  Bf6 {[%clk 0:02:43]} 15. Rfe1 {[%clk 0:02:19]}  a4 {[%clk 0:02:25]} 16. e5 {[%clk 0:02:06]}  Bh4 {[%clk 0:02:22]} 17. Qg4 {[%clk 0:02:03]}  axb3 {[%clk 0:02:19]} 18. axb3 {[%clk 0:02:00]}  Qg5 {[%clk 0:02:01]} 19. Qh3 {[%clk 0:01:55]}  Qh6 {[%clk 0:01:58]} 20. Na4 {[%clk 0:01:33]}  Be7 {[%clk 0:01:37]} 21. Qxh6 {[%clk 0:01:29]}  gxh6 {[%clk 0:01:36]} 22. Bd4 {[%clk 0:01:29]}  Ra5 {[%clk 0:01:33]} 23. Re3 {[%clk 0:01:07]}  h5 {[%clk 0:01:32]} 24. Rg3+ {[%clk 0:01:05]}  Kh8 {[%clk 0:01:32]} 25. Rc3 {[%clk 0:01:05]}  Bb7 {[%clk 0:01:21]} 26. Bc5 {[%clk 0:01:05]}  Bxc5 {[%clk 0:01:20]} 27. Nxc5 {[%clk 0:01:06]}  Ba8 {[%clk 0:01:20]} 28. b4 {[%clk 0:01:00]}  Ra2 {[%clk 0:01:18]} 29. f3 {[%clk 0:00:45]}  h4 {[%clk 0:00:53]} 30. Kf2 {[%clk 0:00:44]}  Rb2 {[%clk 0:00:45]} 31. Rd4 {[%clk 0:00:43]}  h3 {[%clk 0:00:38]} 32. gxh3 {[%clk 0:00:38]}  Rb8 {[%clk 0:00:35]} 33. Nd3 {[%clk 0:00:36]}  Rb1 {[%clk 0:00:32]} 34. Ra3 {[%clk 0:00:36]}  Rh1 {[%clk 0:00:27]} 35. Kg2 {[%clk 0:00:29]}  Rd1 {[%clk 0:00:27]} 36. Ra7 {[%clk 0:00:22]}  Rd2+ {[%clk 0:00:16]} 37. Kg3 {[%clk 0:00:22]}  Rxc2 {[%clk 0:00:15]} 38. Rf4 {[%clk 0:00:18]}  Rg8+ {[%clk 0:00:13]} 39. Kh4 {[%clk 0:00:15]}  Rc4 {[%clk 0:00:13]} 40. Rxf7 {[%clk 0:00:13]}  Rg6 {[%clk 0:00:08]} 41. Kh5 {[%clk 0:00:11]}  Rxf4 {[%clk 0:00:05]} 42. Nxf4 {[%clk 0:00:10]}  Rg8 {[%clk 0:00:05]} 43. Nxe6 {[%clk 0:00:08]}  c5 {[%clk 0:00:05]} 44. bxc5 {[%clk 0:00:06]}  Bc6 {[%clk 0:00:05]} 45. Re7 {[%clk 0:00:05]}  Be8+ {[%clk 0:00:04]} 46. Kh4 {[%clk 0:00:06]}  Bg6 {[%clk 0:00:03]} 47. Nf4 {[%clk 0:00:05]}  d4 {[%clk 0:00:02]} 48. Nxg6+ {[%clk 0:00:05]}  Rxg6 {[%clk 0:00:02]} 49. Rd7 {[%clk 0:00:04]}  Rc6 {[%clk 0:00:02]} 50. Rxd4 {[%clk 0:00:04]}  Rxc5 {[%clk 0:00:02]} 51. f4 {[%clk 0:00:05]}  Kg7 {[%clk 0:00:02]} 52. Kg4 {[%clk 0:00:05]}  Rc2 {[%clk 0:00:02]} 53. Rd7+ {[%clk 0:00:06]}  Kh6 {[%clk 0:00:01]} 54. Rd6+ {[%clk 0:00:06]}  Kg7 {[%clk 0:00:01]} 55. Kf5 {[%clk 0:00:06]}  Rxh2 {[%clk 0:00:02]} 56. Rd7+ {[%clk 0:00:07]}  Kh6 {[%clk 0:00:02]} 57. Kf6 {[%clk 0:00:07]}  Rxh3 {[%clk 0:00:02]} 58. f5 {[%clk 0:00:08]}  Ra3 {[%clk 0:00:01]} 59. e6 {[%clk 0:00:08]}  Kh5 {[%clk 0:00:01]} 60. Kf7 {[%clk 0:00:08]}  Kg5 {[%clk 0:00:01]} 61. e7 {[%clk 0:00:07]} 1-0


[Site "https://www.chess.com"]

[Event "Titled Tuesday Blitz April 25 Early 2023"]
[White "Kosakowski, Jakub"]
[Black "Koellner, Ruben Gideon"]
[WhiteFideId "1185080"]
[BlackFideId "12993093"]
[WhiteElo "2488"]
[BlackElo "2314"]
[Result "0-1"]
[Round "08"]
[TimeControl "180+2"]
[Date "2023.04.25"]
[WhiteClock "0:00:02"]
[BlackClock "0:00:06"]

1. e4 {[%clk 0:02:55]}  d6 {[%clk 0:02:59]} 2. d4 {[%clk 0:02:55]}  Nf6 {[%clk 0:02:59]} 3. Nc3 {[%clk 0:02:55]}  e5 {[%clk 0:02:59]} 4. dxe5 {[%clk 0:02:55]}  dxe5 {[%clk 0:03:00]} 5. Qxd8+ {[%clk 0:02:55]}  Kxd8 {[%clk 0:03:01]} 6. Bc4 {[%clk 0:02:56]}  Be6 {[%clk 0:03:01]} 7. Bxe6 {[%clk 0:02:57]}  fxe6 {[%clk 0:03:02]} 8. f3 {[%clk 0:02:55]}  Bd6 {[%clk 0:03:03]} 9. Be3 {[%clk 0:02:54]}  Ke7 {[%clk 0:03:04]} 10. Nh3 {[%clk 0:02:54]}  a6 {[%clk 0:03:04]} 11. Nf2 {[%clk 0:02:54]}  Nbd7 {[%clk 0:03:05]} 12. O-O-O {[%clk 0:02:55]}  b5 {[%clk 0:03:06]} 13. Nb1 {[%clk 0:02:48]}  c5 {[%clk 0:03:04]} 14. Rd2 {[%clk 0:02:48]}  Rhc8 {[%clk 0:03:04]} 15. Rhd1 {[%clk 0:02:48]}  Rc6 {[%clk 0:03:04]} 16. Nc3 {[%clk 0:02:40]}  c4 {[%clk 0:03:02]} 17. Ne2 {[%clk 0:02:36]}  Bc5 {[%clk 0:02:57]} 18. Bxc5+ {[%clk 0:02:32]}  Nxc5 {[%clk 0:02:58]} 19. Ng3 {[%clk 0:02:32]}  b4 {[%clk 0:02:51]} 20. Ne2 {[%clk 0:02:14]}  a5 {[%clk 0:02:47]} 21. f4 {[%clk 0:02:05]}  exf4 {[%clk 0:02:08]} 22. Nxf4 {[%clk 0:01:48]}  c3 {[%clk 0:01:59]} 23. Rd4 {[%clk 0:00:54]}  cxb2+ {[%clk 0:01:47]} 24. Kxb2 {[%clk 0:00:53]}  e5 {[%clk 0:01:03]} 25. Nd5+ {[%clk 0:00:52]}  Ke6 {[%clk 0:01:04]} 26. R4d2 {[%clk 0:00:16]}  Ncxe4 {[%clk 0:00:55]} 27. Nxe4 {[%clk 0:00:16]}  Nxe4 {[%clk 0:00:55]} 28. Re2 {[%clk 0:00:15]}  Nc3 {[%clk 0:00:53]} 29. Nxc3 {[%clk 0:00:15]}  bxc3+ {[%clk 0:00:53]} 30. Ka3 {[%clk 0:00:14]}  Rb8 {[%clk 0:00:53]} 31. Rd3 {[%clk 0:00:10]}  Rb4 {[%clk 0:00:37]} 32. h3 {[%clk 0:00:07]}  h5 {[%clk 0:00:36]} 33. g3 {[%clk 0:00:05]}  e4 {[%clk 0:00:30]} 34. Rd8 {[%clk 0:00:04]}  Rd6 {[%clk 0:00:26]} 35. Re8+ {[%clk 0:00:04]}  Kf5 {[%clk 0:00:26]} 36. Rf2+ {[%clk 0:00:04]}  Kg6 {[%clk 0:00:26]} 37. Re5 {[%clk 0:00:04]}  Rd2 {[%clk 0:00:24]} 38. Re6+ {[%clk 0:00:04]}  Kh7 {[%clk 0:00:22]} 39. Rf5 {[%clk 0:00:04]}  Rxc2 {[%clk 0:00:19]} 40. Rxh5+ {[%clk 0:00:05]}  Kg8 {[%clk 0:00:19]} 41. Re8+ {[%clk 0:00:05]}  Kf7 {[%clk 0:00:19]} 42. Rhe5 {[%clk 0:00:06]}  Re2 {[%clk 0:00:12]} 43. R8e7+ {[%clk 0:00:04]}  Kg6 {[%clk 0:00:11]} 44. R5e6+ {[%clk 0:00:02]}  Kh7 {[%clk 0:00:11]} 45. Rc6 {[%clk 0:00:02]}  c2 {[%clk 0:00:09]} 46. Rcc7 {[%clk 0:00:02]}  Re3+ {[%clk 0:00:06]} 0-1


[Site "https://www.chess.com"]

[Event "Titled Tuesday Blitz April 25 Early 2023"]
[White "Hamitevici, Vladimir"]
[Black "Kushko, Dmitriy"]
[WhiteFideId "13902393"]
[BlackFideId "14162261"]
[WhiteElo "2401"]
[BlackElo "2230"]
[Result "0-1"]
[Round "08"]
[TimeControl "180+2"]
[Date "2023.04.25"]
[WhiteClock "0:00:01"]
[BlackClock "0:00:07"]

1. d4 {[%clk 0:03:00]}  g6 {[%clk 0:03:00]} 2. Bf4 {[%clk 0:03:00]}  Bg7 {[%clk 0:03:00]} 3. e3 {[%clk 0:02:54]}  d6 {[%clk 0:03:00]} 4. Nf3 {[%clk 0:02:51]}  Nd7 {[%clk 0:03:01]} 5. c4 {[%clk 0:02:47]}  e5 {[%clk 0:03:01]} 6. Bg5 {[%clk 0:02:47]}  f6 {[%clk 0:02:59]} 7. Bh4 {[%clk 0:02:46]}  Ne7 {[%clk 0:02:55]} 8. Bd3 {[%clk 0:02:38]}  O-O {[%clk 0:02:47]} 9. Nc3 {[%clk 0:02:32]}  h6 {[%clk 0:02:24]} 10. Qc2 {[%clk 0:02:12]}  g5 {[%clk 0:01:59]} 11. Bg3 {[%clk 0:02:11]}  f5 {[%clk 0:01:59]} 12. O-O-O {[%clk 0:01:42]}  e4 {[%clk 0:01:56]} 13. Nxe4 {[%clk 0:01:38]}  fxe4 {[%clk 0:01:57]} 14. Bxe4 {[%clk 0:01:39]}  Nf6 {[%clk 0:01:56]} 15. Bd3 {[%clk 0:01:38]}  Nh5 {[%clk 0:01:36]} 16. Kb1 {[%clk 0:01:32]}  Kh8 {[%clk 0:01:34]} 17. e4 {[%clk 0:01:24]}  Nc6 {[%clk 0:01:10]} 18. e5 {[%clk 0:01:13]}  Nb4 {[%clk 0:01:07]} 19. Qb3 {[%clk 0:01:11]}  Nxd3 {[%clk 0:01:07]} 20. Rxd3 {[%clk 0:01:12]}  Bf5 {[%clk 0:01:07]} 21. Ka1 {[%clk 0:01:12]}  Bxd3 {[%clk 0:01:07]} 22. Qxd3 {[%clk 0:01:13]}  dxe5 {[%clk 0:01:06]} 23. Nxe5 {[%clk 0:01:10]}  Nf4 {[%clk 0:00:27]} 24. Bxf4 {[%clk 0:01:07]}  Rxf4 {[%clk 0:00:28]} 25. Ng6+ {[%clk 0:01:03]}  Kg8 {[%clk 0:00:28]} 26. Nxf4 {[%clk 0:00:59]}  gxf4 {[%clk 0:00:29]} 27. Rd1 {[%clk 0:00:58]}  Qf6 {[%clk 0:00:26]} 28. Qf3 {[%clk 0:00:53]}  c6 {[%clk 0:00:26]} 29. Rd2 {[%clk 0:00:45]}  Rd8 {[%clk 0:00:24]} 30. d5 {[%clk 0:00:45]}  cxd5 {[%clk 0:00:24]} 31. cxd5 {[%clk 0:00:46]}  Rd6 {[%clk 0:00:20]} 32. a3 {[%clk 0:00:45]}  Rb6 {[%clk 0:00:20]} 33. Qe2 {[%clk 0:00:24]}  Qe5 {[%clk 0:00:16]} 34. Qxe5 {[%clk 0:00:16]}  Bxe5 {[%clk 0:00:17]} 35. g3 {[%clk 0:00:17]}  Kf7 {[%clk 0:00:15]} 36. Ka2 {[%clk 0:00:16]}  fxg3 {[%clk 0:00:15]} 37. hxg3 {[%clk 0:00:16]}  Ke7 {[%clk 0:00:15]} 38. f4 {[%clk 0:00:14]}  Bg7 {[%clk 0:00:14]} 39. b4 {[%clk 0:00:14]}  Rf6 {[%clk 0:00:10]} 40. Kb3 {[%clk 0:00:13]}  Kd7 {[%clk 0:00:11]} 41. Kc4 {[%clk 0:00:12]}  Rf8 {[%clk 0:00:10]} 42. Rd3 {[%clk 0:00:11]}  Rc8+ {[%clk 0:00:11]} 43. Kb3 {[%clk 0:00:11]}  Re8 {[%clk 0:00:12]} 44. Kc4 {[%clk 0:00:10]}  Re1 {[%clk 0:00:12]} 45. Kb3 {[%clk 0:00:05]}  Kd6 {[%clk 0:00:11]} 46. g4 {[%clk 0:00:05]}  Rg1 {[%clk 0:00:10]} 47. g5 {[%clk 0:00:05]}  hxg5 {[%clk 0:00:11]} 48. fxg5 {[%clk 0:00:05]}  Rxg5 {[%clk 0:00:10]} 49. Kc4 {[%clk 0:00:06]}  Rg4+ {[%clk 0:00:10]} 50. Kb5 {[%clk 0:00:06]}  Be5 {[%clk 0:00:10]} 51. a4 {[%clk 0:00:05]}  Rd4 {[%clk 0:00:08]} 52. Rxd4 {[%clk 0:00:03]}  Bxd4 {[%clk 0:00:08]} 53. Kc4 {[%clk 0:00:04]}  Bf2 {[%clk 0:00:07]} 54. a5 {[%clk 0:00:05]}  Bg1 {[%clk 0:00:06]} 55. b5 {[%clk 0:00:02]}  Bf2 {[%clk 0:00:07]} 56. a6 {[%clk 0:00:01]}  b6 {[%clk 0:00:07]} 0-1


[Site "https://www.chess.com"]

[Event "Titled Tuesday Blitz April 25 Early 2023"]
[White "Halkias, Stelios"]
[Black "Sharapov, Evgeny"]
[WhiteFideId "4201809"]
[BlackFideId "14103133"]
[WhiteElo "2451"]
[BlackElo "2367"]
[Result "1/2-1/2"]
[Round "08"]
[TimeControl "180+2"]
[Date "2023.04.25"]
[WhiteClock "0:00:56"]
[BlackClock "0:01:10"]

1. Nf3 {[%clk 0:02:50]}  c5 {[%clk 0:02:58]} 2. c4 {[%clk 0:02:50]}  Nc6 {[%clk 0:02:58]} 3. Nc3 {[%clk 0:02:51]}  e5 {[%clk 0:02:58]} 4. e3 {[%clk 0:02:51]}  Nf6 {[%clk 0:02:57]} 5. Be2 {[%clk 0:02:51]}  d5 {[%clk 0:02:57]} 6. cxd5 {[%clk 0:02:51]}  Nxd5 {[%clk 0:02:57]} 7. O-O {[%clk 0:02:50]}  Nxc3 {[%clk 0:02:56]} 8. dxc3 {[%clk 0:02:50]}  Qxd1 {[%clk 0:02:55]} 9. Rxd1 {[%clk 0:02:50]}  f6 {[%clk 0:02:52]} 10. e4 {[%clk 0:02:50]}  Be6 {[%clk 0:02:52]} 11. Be3 {[%clk 0:02:49]}  a6 {[%clk 0:02:48]} 12. Nd2 {[%clk 0:02:49]}  O-O-O {[%clk 0:02:34]} 13. Nc4 {[%clk 0:02:38]}  Rxd1+ {[%clk 0:02:30]} 14. Rxd1 {[%clk 0:02:36]}  Kc7 {[%clk 0:02:31]} 15. a4 {[%clk 0:02:26]}  Be7 {[%clk 0:02:29]} 16. h3 {[%clk 0:02:24]}  Rd8 {[%clk 0:02:27]} 17. Rxd8 {[%clk 0:02:23]}  Nxd8 {[%clk 0:02:23]} 18. Kf1 {[%clk 0:02:19]}  Nc6 {[%clk 0:02:22]} 19. Ke1 {[%clk 0:02:17]}  b5 {[%clk 0:02:18]} 20. axb5 {[%clk 0:02:16]}  axb5 {[%clk 0:02:18]} 21. Na3 {[%clk 0:02:16]}  b4 {[%clk 0:02:18]} 22. Nc4 {[%clk 0:02:16]}  bxc3 {[%clk 0:02:16]} 23. bxc3 {[%clk 0:02:16]}  Nb8 {[%clk 0:02:04]} 24. Bd2 {[%clk 0:02:03]}  Nd7 {[%clk 0:02:03]} 25. Ne3 {[%clk 0:02:02]}  Nb6 {[%clk 0:02:00]} 26. c4 {[%clk 0:02:01]}  g6 {[%clk 0:01:50]} 27. Ba5 {[%clk 0:01:53]}  Kb7 {[%clk 0:01:45]} 28. Nd5 {[%clk 0:01:32]}  Nxd5 {[%clk 0:01:44]} 29. cxd5 {[%clk 0:01:31]}  Bd7 {[%clk 0:01:43]} 30. Kd2 {[%clk 0:01:31]}  f5 {[%clk 0:01:40]} 31. f3 {[%clk 0:01:30]}  f4 {[%clk 0:01:36]} 32. Kc3 {[%clk 0:01:26]}  g5 {[%clk 0:01:29]} 33. Kb3 {[%clk 0:01:21]}  h5 {[%clk 0:01:27]} 34. Bc3 {[%clk 0:01:21]}  Bd6 {[%clk 0:01:26]} 35. Bb2 {[%clk 0:01:13]}  Kb6 {[%clk 0:01:25]} 36. Bc3 {[%clk 0:01:13]}  Be8 {[%clk 0:01:20]} 37. Bd2 {[%clk 0:01:05]}  Bg6 {[%clk 0:01:17]} 38. Bd3 {[%clk 0:01:03]}  Be8 {[%clk 0:01:13]} 39. Bc4 {[%clk 0:01:02]}  Bg6 {[%clk 0:01:11]} 40. Bd3 {[%clk 0:01:01]}  Be8 {[%clk 0:01:11]} 41. Bc4 {[%clk 0:01:00]}  Bg6 {[%clk 0:01:10]} 42. Bd3 {[%clk 0:00:56]} 1/2-1/2


[Site "https://www.chess.com"]

[Event "Titled Tuesday Blitz April 25 Early 2023"]
[White "Bartel, Michal"]
[Black "Kollars, Dmitrij"]
[WhiteFideId "1119257"]
[BlackFideId "12909572"]
[WhiteElo "2282"]
[BlackElo "2584"]
[Result "0-1"]
[Round "08"]
[TimeControl "180+2"]
[Date "2023.04.25"]
[WhiteClock "0:02:22"]
[BlackClock "0:02:42"]

1. e4 {[%clk 0:02:57]}  e5 {[%clk 0:03:00]} 2. Nc3 {[%clk 0:02:57]}  Nf6 {[%clk 0:02:59]} 3. g3 {[%clk 0:02:57]}  Bc5 {[%clk 0:02:58]} 4. Bg2 {[%clk 0:02:57]}  a5 {[%clk 0:02:58]} 5. Nge2 {[%clk 0:02:57]}  d6 {[%clk 0:02:59]} 6. O-O {[%clk 0:02:56]}  h5 {[%clk 0:02:57]} 7. h3 {[%clk 0:02:56]}  h4 {[%clk 0:02:57]} 8. g4 {[%clk 0:02:57]}  Nbd7 {[%clk 0:02:57]} 9. d4 {[%clk 0:02:57]}  exd4 {[%clk 0:02:57]} 10. Nxd4 {[%clk 0:02:57]}  Ne5 {[%clk 0:02:55]} 11. Re1 {[%clk 0:02:51]}  Nfxg4 {[%clk 0:02:53]} 12. hxg4 {[%clk 0:02:51]}  Bxg4 {[%clk 0:02:54]} 13. Qd2 {[%clk 0:02:38]}  h3 {[%clk 0:02:53]} 14. Bh1 {[%clk 0:02:29]}  h2+ {[%clk 0:02:53]} 15. Kf1 {[%clk 0:02:29]}  Bxd4 {[%clk 0:02:49]} 16. Qxd4 {[%clk 0:02:29]}  Bf3 {[%clk 0:02:48]} 17. Bf4 {[%clk 0:02:22]}  Bxh1 {[%clk 0:02:42]} 18. Bxe5 {[%clk 0:02:22]}  Bf3 {[%clk 0:02:42]} 0-1


[Site "https://www.chess.com"]